fUST/lending_fUST_20251012
["ID","MTS","AMOUNT","RATE_DAILY","PERIOD"]
[390962765,1760233859606,-3302.64,0.00021917,2]
[390962766,1760233859615,-3302.64,0.00021917,2]
[390962767,1760233859624,-500.0,0.00021917,2]
[390962768,1760233859634,-3302.64,0.00021917,2]
[390962769,1760233859643,-500.0,0.00021917,2]
[390962770,1760233859652,-3302.64,0.00021917,2]
[390962771,1760233859662,-500.0,0.00021917,2]
[390962772,1760233859671,-3302.64,0.00021917,2]
[390962773,1760233859681,-500.0,0.00021917,2]
[390962774,1760233859690,-3302.64,0.00021917,2]
[390962775,1760233859700,-500.0,0.00021917,2]
[390962776,1760233859710,-3302.64,0.00021917,2]
[390962777,1760233859720,-500.0,0.00021917,2]
[390962778,1760233859730,-500.0,0.00021917,2]
[390962779,1760233859739,-3302.64,0.00021917,2]
[390962780,1760233859748,-500.0,0.00021917,2]
[390962781,1760233859757,-500.0,0.00021917,2]
[390962782,1760233859765,-3302.64,0.00021917,2]
[390962783,1760233859774,-324.81,0.00021917,2]
[390962784,1760233859783,-3302.64,0.00021917,2]
[390962785,1760233859792,-680.66786214,0.00021917,2]
[390962786,1760233860187,-2621.97213786,0.00021917,2]
[390962787,1760233860204,-3302.64,0.00021917,2]
[390962788,1760233860222,-3302.64,0.00021917,2]
[390962789,1760233860240,-3302.67758764,0.00021917,2]
[390962790,1760233860255,-500.0,0.00021917,2]
[390962791,1760233860268,-500.0,0.00021917,2]
[390962792,1760233860282,-500.0,0.00021917,2]
[390962793,1760233860299,-500.0,0.00021917,2]
[390962794,1760233860312,-500.0,0.00021917,2]
[390962795,1760233860326,-500.0,0.00021917,2]
[390962796,1760233860339,-503.20571557,0.00021917,2]
[390962797,1760233860352,-230.61305067,0.00021917,2]
[390962798,1760233860365,-500.0,0.00021917,2]
[390962799,1760233860378,-500.0,0.00021917,2]
[390962800,1760233860394,-501.08773138,0.00021917,2]
[390962801,1760233860407,-187.08,0.00021917,2]
[390962802,1760233860420,-500.0,0.00021917,2]
[390962803,1760233860433,-500.0,0.00021917,2]
[390962804,1760233860447,-500.0,0.00021917,2]
[390962805,1760233860466,-500.0,0.00021917,2]
[390962806,1760233860481,-500.0,0.00021917,2]
[390962807,1760233860493,-500.0,0.00021917,2]
[390962808,1760233860506,-500.0,0.00021917,2]
[390962809,1760233860520,-500.0,0.00021917,2]
[390962810,1760233860534,-511.54,0.00021917,2]
[390962811,1760233860548,-500.0,0.00021917,2]
[390962812,1760233860560,-500.0,0.00021917,2]
[390962813,1760233860571,-500.0,0.00021917,2]
[390962814,1760233860580,-500.79115638,0.00021917,2]
[390962815,1760233860589,-516.08914787,0.00021917,2]
[390962816,1760233860598,-527.07106977,0.00021917,2]
[390962817,1760233860607,-500.0,0.00021917,2]
[390962818,1760233860617,-1975.96,0.00021917,2]
[390962819,1760233860626,-500.0,0.00021917,2]
[390962820,1760233860635,-1975.96,0.00021917,2]
[390962821,1760233860644,-1975.96,0.00021917,2]
[390962822,1760233860654,-500.0,0.00021917,2]
[390962823,1760233860663,-1975.96,0.00021917,2]
[390962824,1760233860672,-500.0,0.00021917,2]
[390962825,1760233860681,-1975.96,0.00021917,2]
[390962826,1760233860691,-500.0,0.00021917,2]
[390962827,1760233860700,-1975.96,0.00021917,2]
[390962828,1760233860710,-500.0,0.00021917,2]
[390962829,1760233860719,-1975.96,0.00021917,2]
[390962830,1760233860728,-1975.96,0.00021917,2]
[390962831,1760233860737,-500.0,0.00021917,2]
[390962832,1760233860746,-500.0,0.00021917,2]
[390962833,1760233860755,-1975.96,0.00021917,2]
[390962834,1760233860764,-1975.96,0.00021917,2]
[390962835,1760233860773,-255.92,0.00021917,2]
[390962836,1760233860782,-1975.96,0.00021917,2]
[390962837,1760233860792,-1975.96,0.00021917,2]
[390962838,1760233860801,-1975.96,0.00021917,2]
[390962839,1760233860810,-1000.0,0.00021917,2]
[390962840,1760233860819,-1975.96,0.00021917,2]
[390962841,1760233860829,-1003.39491569,0.00021917,2]
[390962842,1760233860839,-1975.96,0.00021917,2]
[390962843,1760233860847,-1975.96,0.00021917,2]
[390962844,1760233860856,-1975.96,0.00021917,2]
[390962845,1760233860866,-500.0,0.00021917,2]
[390962846,1760233860875,-500.0,0.00021917,2]
[390962847,1760233860886,-500.0,0.00021917,2]
[390962848,1760233860896,-1975.96,0.00021917,2]
[390962849,1760233860906,-501.76476601,0.00021917,2]
[390962850,1760233860916,-500.0,0.00021917,2]
[390962851,1760233860925,-500.0,0.00021917,2]
[390962852,1760233860935,-1975.96,0.00021917,2]
[390962853,1760233860952,-646.1233999,0.00021917,2]
[390962854,1760233860961,-500.0,0.00021917,2]
[390962855,1760233861229,-1975.96,0.00021917,2]
[390962856,1760233861243,-500.0,0.00021917,2]
[390962857,1760233861252,-500.0,0.00021917,2]
[390962858,1760233861262,-500.0,0.00021917,2]
[390962859,1760233861271,-500.0,0.00021917,2]
[390962860,1760233861280,-500.64635,0.00021917,2]
[390962861,1760233861290,-500.0,0.00021917,2]
[390962862,1760233861299,-500.0,0.00021917,2]
[390962863,1760233861309,-613.75,0.00021917,2]
[390962864,1760233861318,-1975.96,0.00021917,2]
[390962865,1760233861327,-500.0,0.00021917,2]
[390962866,1760233861337,-500.0,0.00021917,2]
[390962867,1760233861346,-1975.96,0.00021917,2]
[390962868,1760233861355,-500.0,0.00021917,2]
[390962869,1760233861364,-500.0,0.00021917,2]
[390962870,1760233861373,-1975.96,0.00021917,2]
[390962871,1760233861383,-500.0,0.00021917,2]
[390962872,1760233861394,-500.52555617,0.00021917,2]
[390962873,1760233861403,-500.0,0.00021917,2]
[390962874,1760233861412,-1976.1464763,0.00021917,2]
[390962875,1760233861422,-500.0,0.00021917,2]
[390962876,1760233861431,-500.0,0.00021917,2]
[390962877,1760233861440,-500.0,0.00021917,2]
[390962878,1760233861449,-373.88,0.00021917,2]
[390962879,1760233861459,-500.0,0.00021917,2]
[390962880,1760233861467,-500.0,0.00021917,2]
[390962881,1760233861476,-500.0,0.00021917,2]
[390962882,1760233861485,-500.0,0.00021917,2]
[390962883,1760233861494,-500.0,0.00021917,2]
[390962884,1760233861503,-500.0,0.00021917,2]
[390962885,1760233861512,-500.0,0.00021917,2]
[390962886,1760233861522,-500.0,0.00021917,2]
[390962887,1760233861531,-500.0,0.00021917,2]
[390962888,1760233861540,-500.0,0.00021917,2]
[390962889,1760233861549,-500.0,0.00021917,2]
[390962890,1760233861558,-500.0,0.00021917,2]
[390962891,1760233861567,-500.0,0.00021917,2]
[390962892,1760233861576,-500.0,0.00021917,2]
[390962893,1760233861585,-500.0,0.00021917,2]
[390962894,1760233861595,-500.0,0.00021917,2]
[390962895,1760233861605,-500.0,0.00021917,2]
[390962896,1760233861614,-500.0,0.00021917,2]
[390962897,1760233861623,-500.0,0.00021917,2]
[390962898,1760233861633,-500.0,0.00021917,2]
[390962899,1760233861644,-500.0,0.00021917,2]
[390962900,1760233861657,-500.0,0.00021917,2]
[390962901,1760233861666,-500.0,0.00021917,2]
[390962902,1760233861676,-500.0,0.00021917,2]
[390962903,1760233861685,-500.0,0.00021917,2]
[390962904,1760233861694,-500.0,0.00021917,2]
[390962905,1760233861703,-500.0,0.00021917,2]
[390962906,1760233861712,-500.0,0.00021917,2]
[390962907,1760233861722,-500.0,0.00021917,2]
[390962908,1760233861732,-500.0,0.00021917,2]
[390962909,1760233861742,-500.0,0.00021917,2]
[390962910,1760233861751,-500.0,0.00021917,2]
[390962911,1760233861761,-500.0,0.00021917,2]
[390962912,1760233861771,-500.0,0.00021917,2]
[390962913,1760233861780,-446.74892396,0.00021917,2]
[390962914,1760233861790,-500.0,0.00021917,2]
[390962915,1760233861799,-500.0,0.00021917,2]
[390962916,1760233861812,-500.0,0.00021917,2]
[390962917,1760233861821,-500.0,0.00021917,2]
[390962918,1760233861831,-500.0,0.00021917,2]
[390962919,1760233861840,-501.9890954,0.00021917,2]
[390962920,1760233861851,-500.0,0.00021917,2]
[390962921,1760233861861,-500.0,0.00021917,2]
[390962922,1760233861870,-500.0,0.00021917,2]
[390962923,1760233861880,-500.0,0.00021917,2]
[390962924,1760233861889,-500.0,0.00021917,2]
[390962925,1760233861898,-500.0,0.00021917,2]
[390962926,1760233861908,-500.0,0.00021917,2]
[390962927,1760233861918,-501.33687081,0.00021917,2]
[390962928,1760233861929,-501.39909043,0.00021917,2]
[390962929,1760233861942,-618.75077707,0.00021917,2]
[390962930,1760233861954,-500.0,0.00021917,2]
[390962931,1760233861965,-500.0,0.00021917,2]
[390962932,1760233861977,-1617.39,0.00021917,2]
[390962933,1760233861989,-502.70560225,0.00021917,2]
[390962934,1760233862003,-1617.39,0.00021917,2]
[390962935,1760233862015,-1617.39,0.00021917,2]
[390962936,1760233862024,-1617.39,0.00021917,2]
[390962937,1760233862033,-1617.39,0.00021917,2]
[390962938,1760233862043,-1617.39,0.00021917,2]
[390962939,1760233862052,-1617.39,0.00021917,2]
[390962940,1760233862061,-1617.39,0.00021917,2]
[390962941,1760233862071,-1617.39,0.00021917,2]
[390962942,1760233862080,-503.12086258,0.00021917,2]
[390962943,1760233862089,-1617.39,0.00021917,2]
[390962944,1760233862098,-1617.39,0.00021917,2]
[390962945,1760233862109,-1617.39,0.00021917,2]
[390962946,1760233862120,-1617.39,0.00021917,2]
[390962947,1760233862130,-507.32649202,0.00021917,2]
[390962948,1760233862139,-1617.39,0.00021917,2]
[390962949,1760233862151,-1617.39,0.00021917,2]
[390962950,1760233862160,-501.179805,0.00021917,2]
[390962951,1760233862170,-1617.39,0.00021917,2]
[390962952,1760233862179,-1617.39,0.00021917,2]
[390962953,1760233862191,-500.0,0.00021917,2]
[390962954,1760233862200,-1617.39,0.00021917,2]
[390962955,1760233862212,-500.0,0.00021917,2]
[390962956,1760233862223,-1617.39,0.00021917,2]
[390962957,1760233862240,-937.88,0.00021917,2]
[390962958,1760233862260,-500.0,0.00021917,2]
[390962959,1760233862282,-1617.39,0.00021917,2]
[390962960,1760233862302,-500.0,0.00021917,2]
[390962961,1760233862324,-1617.39,0.00021917,2]
[390962962,1760233862337,-937.88,0.00021917,2]
[390962963,1760233862347,-407.34946105,0.00021917,2]
[390962964,1760233862356,-1617.39,0.00021917,2]
[390962965,1760233862366,-937.88,0.00021917,2]
[390962966,1760233862375,-1617.39,0.00021917,2]
[390962967,1760233862384,-937.88,0.00021917,2]
[390962968,1760233862396,-1617.54862455,0.00021917,2]
[390962969,1760233862405,-937.88,0.00021917,2]
[390962970,1760233862415,-500.0,0.00021917,2]
[390962971,1760233862423,-937.88,0.00021917,2]
[390962972,1760233862433,-500.0,0.00021917,2]
[390962973,1760233862442,-359.99163346,0.00021917,2]
[390962974,1760233862452,-937.88,0.00021917,2]
[390962975,1760233862461,-500.0,0.00021917,2]
[390962976,1760233862470,-500.0,0.00021917,2]
[390962977,1760233862479,-937.88,0.00021917,2]
[390962978,1760233862489,-500.0,0.00021917,2]
[390962979,1760233862499,-500.0,0.00021917,2]
[390962980,1760233862508,-937.88,0.00021917,2]
[390962981,1760233862517,-500.0,0.00021917,2]
[390962982,1760233862527,-500.0,0.00021917,2]
[390962983,1760233862536,-937.88,0.00021917,2]
[390962984,1760233862546,-561.40847183,0.00021917,2]
[390962985,1760233862556,-500.0,0.00021917,2]
[390962986,1760233862565,-500.0,0.00021917,2]
[390962987,1760233862575,-500.0,0.00021917,2]
[390962988,1760233862584,-500.0,0.00021917,2]
[390962989,1760233862593,-937.88,0.00021917,2]
[390962990,1760233862603,-500.0,0.00021917,2]
[390962991,1760233862612,-500.0,0.00021917,2]
[390962992,1760233862621,-937.88,0.00021917,2]
[390962993,1760233862631,-500.0,0.00021917,2]
[390962994,1760233862642,-500.0,0.00021917,2]
[390962995,1760233862652,-937.88,0.00021917,2]
[390962996,1760233862661,-501.71594443,0.00021917,2]
[390962997,1760233862671,-937.88,0.00021917,2]
[390962998,1760233862680,-937.88,0.00021917,2]
[390962999,1760233862690,-937.88,0.00021917,2]
[390963000,1760233862699,-937.88,0.00021917,2]
[390963001,1760233862709,-500.0,0.00021917,2]
[390963002,1760233862718,-937.88,0.00021917,2]
[390963003,1760233862727,-937.88,0.00021917,2]
[390963004,1760233862736,-937.88,0.00021917,2]
[390963005,1760233862746,-500.0,0.00021917,2]
[390963006,1760233862755,-937.88,0.00021917,2]
[390963007,1760233862764,-502.76911254,0.00021917,2]
[390963008,1760233862774,-937.88,0.00021917,2]
[390963009,1760233862783,-500.0,0.00021917,2]
[390963010,1760233862793,-501.47306719,0.00021973,2]
[390963011,1760233862803,-500.0,0.00021973,2]
[390963012,1760233862813,-500.0,0.00021973,2]
[390963013,1760233862822,-500.52625155,0.00021973,2]
[390963014,1760233862832,-502.45294541,0.00021973,2]
[390963015,1760233862841,-500.0,0.00021973,2]
[390963016,1760233862850,-163.49286807,0.00021973,2]
[390963017,1760233862859,-177.42802561,0.00021973,2]
[390963018,1760233862869,-500.0,0.00021973,2]
[390963019,1760233862878,-500.0,0.00021973,2]
[390963020,1760233862889,-500.0,0.00021973,2]
[390963021,1760233862898,-500.0,0.00021973,2]
[390963022,1760233862907,-500.0,0.00021973,2]
[390963023,1760233862916,-500.0,0.00021973,2]
[390963024,1760233862925,-500.66281737,0.00021973,2]
[390963025,1760233862935,-500.0,0.00021973,2]
[390963026,1760233862945,-500.2154808,0.00021973,2]
[390963027,1760233862954,-250.07417874,0.00021973,2]
[390963028,1760233862963,-500.0,0.00021973,2]
[390963029,1760233862972,-501.09089061,0.00021973,2]
[390963030,1760233862981,-500.0,0.00021973,2]
[390963031,1760233862990,-200.47381793,0.00021973,2]
[390963032,1760233862999,-500.0,0.00021973,2]
[390963033,1760233863009,-501.29911606,0.00021973,2]
[390963034,1760233863018,-500.0,0.00021973,2]
[390963035,1760233863027,-503.82686276,0.00021973,2]
[390963036,1760233863036,-500.0,0.00021973,2]
[390963037,1760233863046,-502.59945279,0.00021973,2]
[390963038,1760233863055,-500.0,0.00021973,2]
[390963039,1760233863065,-500.0,0.00021973,2]
[390963040,1760233863074,-218.87874871,0.00021973,2]
[390963041,1760233863084,-500.0,0.00021973,2]
[390963042,1760233863094,-500.0,0.00021973,2]
[390963043,1760233863104,-282.76235259,0.00021973,2]
[390963044,1760233863117,-161.4692478,0.0002199,2]
[390963045,1760233863129,-100000.0,0.0002199,2]
[390963046,1760233863140,-362.48189985,0.00021999,2]
[390963047,1760233863150,-330.0879172,0.000221,2]
[390963048,1760233863161,-500.0,0.00022121,2]
[390963049,1760233863170,-1000.0,0.00022121,2]
[390963050,1760233863179,-1000.0,0.00022121,2]
[390963051,1760233863189,-1000.0,0.00022121,2]
[390963052,1760233863198,-994.3954456,0.00022121,2]
[390963053,1760233863207,-1000.0,0.00022121,2]
[390963054,1760233863216,-1000.0,0.00022121,2]
[390963055,1760233863226,-1000.0,0.00022121,2]
[390963056,1760233863235,-1000.0,0.00022121,2]
[390963057,1760233863244,-1000.0,0.00022121,2]
[390963058,1760233863253,-1000.0,0.00022121,2]
[390963059,1760233863264,-510.9220411,0.00022121,2]
[390963060,1760233863273,-500.0,0.00022147,2]
[390963061,1760233863283,-500.0,0.00022148,5]
[390963062,1760233863292,-500.0,0.00022148,5]
[390963063,1760233863301,-1449.9275994,0.00022333,2]
[390963064,1760233863311,-18603.8837,0.00022341,2]
[390963065,1760233863320,-300.0,0.00022354,20]
[390963066,1760233863330,-300.0,0.00022354,20]
[390963067,1760233863340,-300.0,0.00022354,20]
[390963068,1760233863350,-300.0,0.00022354,20]
[390963069,1760233863359,-300.0,0.00022354,20]
[390963070,1760233863369,-300.0,0.00022354,20]
[390963071,1760233863380,-300.0,0.00022354,20]
[390963072,1760233863394,-300.0,0.00022354,20]
[390963073,1760233863404,-300.0,0.00022354,20]
[390963074,1760233863413,-300.0,0.00022354,20]
[390963075,1760233863423,-300.0,0.00022354,20]
[390963076,1760233863433,-300.0,0.00022354,20]
[390963077,1760233863442,-300.0,0.00022354,20]
[390963078,1760233863451,-300.0,0.00022354,20]
[390963079,1760233863460,-300.0,0.00022354,20]
[390963080,1760233863470,-600.0,0.00022354,20]
[390963081,1760233863479,-4084.47,0.0002242,2]
[390963082,1760233863489,-500.0,0.00022421,2]
[390963083,1760233863498,-500.0,0.00022422,5]
[390963084,1760233863508,-500.0,0.00022422,5]
[390963085,1760233863517,-246.51160106,0.00022521,2]
[390963086,1760233863525,-1004.22237887,0.00022521,2]
[390963087,1760233863535,-1124.41453074,0.00022521,2]
[390963088,1760233863544,-1000.0,0.00022521,2]
[390963089,1760233863552,-1000.0,0.00022521,2]
[390963090,1760233863561,-643.89116204,0.00022521,2]
[390963091,1760233863570,-601.12479678,0.00022521,2]
[390963092,1760233863579,-1001.1250408,0.00022521,2]
[390963093,1760233863588,-504.81600997,0.00022521,2]
[390963094,1760233863597,-1000.0,0.00022521,2]
[390963095,1760233863606,-501.70752271,0.00022521,2]
[390963096,1760233863615,-1000.0,0.00022521,2]
[390963097,1760233863624,-503.32908191,0.00022521,2]
[390963098,1760233863633,-1000.0,0.00022521,2]
[390963099,1760233863645,-1000.0,0.00022521,2]
[390963100,1760233863654,-1000.0,0.00022521,2]
[390963101,1760233863664,-1000.0,0.00022521,2]
[390963102,1760233863673,-1000.0,0.00022521,2]
[390963103,1760233863683,-1000.0,0.00022521,2]
[390963104,1760233863692,-1297.77052356,0.00022579,2]
[390963105,1760233863701,-3262.33709865,0.00022668,2]
[390963106,1760233863711,-1507.621945,0.00022668,2]
[390963107,1760233863719,-1500.0,0.00022668,2]
[390963108,1760233863729,-1500.0,0.00022668,2]
[390963109,1760233863738,-1500.0,0.00022668,2]
[390963110,1760233863747,-1500.0,0.00022668,2]
[390963111,1760233863756,-1004.71759284,0.00022668,2]
[390963112,1760233863766,-1500.0,0.00022668,2]
[390963113,1760233863775,-1500.0,0.00022668,2]
[390963114,1760233863784,-1500.0,0.00022668,2]
[390963115,1760233863793,-158.96867298,0.00022695,2]
[390963116,1760233863802,-479.65040945,0.000227,2]
[390963117,1760233863811,-373.14286292,0.000227,2]
[390963118,1760233863821,-151.0,0.00022739,2]
[390963119,1760233863830,-151.0,0.00022739,2]
[390963120,1760233863839,-151.0,0.00022739,2]
[390963121,1760233863848,-151.0,0.00022739,2]
[390963122,1760233863858,-151.0,0.00022739,2]
[390963123,1760233863867,-151.19850957,0.00022739,2]
[390963124,1760233863876,-151.0,0.00022739,2]
[390963125,1760233863885,-151.0,0.00022739,2]
[390963126,1760233863896,-151.0,0.00022739,2]
[390963127,1760233863905,-151.0,0.00022794,2]
[390963128,1760233863914,-198.44532647,0.00022794,2]
[390963129,1760233863923,-151.0,0.00022794,2]
[390963130,1760233863933,-151.0,0.00022794,2]
[390963131,1760233863942,-200.21784867,0.00022794,2]
[390963132,1760233863952,-199.73706691,0.00022794,2]
[390963133,1760233863961,-167.02457101,0.00022794,2]
[390963134,1760233863971,-1290.18,0.00022817,2]
[390963135,1760233863980,-151.0,0.00022849,2]
[390963136,1760233863989,-151.0,0.00022849,2]
[390963137,1760233863999,-151.0,0.00022849,2]
[390963138,1760233864009,-19292.2273969,0.00022889,2]
[390963139,1760233864018,-200.46248783,0.00022903,2]
[390963140,1760233864027,-201.17014505,0.00022903,2]
[390963141,1760233864037,-151.0,0.00022903,2]
[390963142,1760233864047,-160.0,0.0002295,2]
[390963143,1760233864056,-193.03174717,0.00022958,2]
[390963144,1760233864065,-4808.9,0.0002296,3]
[390963145,1760233864074,-2404.46,0.0002296,3]
[390963146,1760233864084,-1202.22,0.0002296,3]
[390963147,1760233864094,-601.12,0.0002296,3]
[390963148,1760233864103,-300.56,0.0002296,3]
[390963149,1760233864118,-1242.0,0.00022966,2]
[390963150,1760233864127,-5793.91068721,0.00023003,2]
[390963151,1760233864139,-189.91203259,0.00023068,2]
[390963152,1760233864148,-1500.0,0.00023068,2]
[390963153,1760233864159,-504.85521143,0.00023068,2]
[390963154,1760233864168,-501.9676903,0.00023068,2]
[390963155,1760233864177,-1500.0,0.00023068,2]
[390963156,1760233864187,-503.78777992,0.00023068,2]
[390963157,1760233864197,-1506.85560792,0.00023068,2]
[390963158,1760233864206,-1500.0,0.00023068,2]
[390963159,1760233864216,-1002.51841808,0.00023068,2]
[390963160,1760233864225,-170.595212,0.00023068,2]
[390963161,1760233864235,-1242.0,0.0002315,2]
[390963162,1760233864244,-500.0,0.00023181,2]
[390963163,1760233864253,-1242.0,0.00023211,2]
[390963164,1760233864262,-2000.0,0.00023216,2]
[390963165,1760233864273,-950.22464386,0.00023216,2]
[390963166,1760233864282,-2000.0,0.00023216,2]
[390963167,1760233864291,-2000.0,0.00023216,2]
[390963168,1760233864300,-2000.0,0.00023216,2]
[390963169,1760233864309,-2000.0,0.00023216,2]
[390963170,1760233864319,-2009.5923444,0.00023216,2]
[390963171,1760233864328,-1242.0,0.00023231,2]
[390963172,1760233864337,-416.19780865,0.000233,2]
[390963173,1760233864347,-1297.77052356,0.00023341,2]
[390963174,1760233864356,-1242.0,0.00023386,2]
[390963175,1760233864366,-3074.43150757,0.00023437,2]
[390963176,1760233864375,-1242.0,0.00023447,2]
[390963177,1760233864385,-1242.0,0.00023465,2]
[390963178,1760233864397,-1680.0,0.0002347,2]
[390963179,1760233864406,-384.0,0.0002347,2]
[390963180,1760233864415,-420.0,0.0002347,2]
[390963181,1760233864424,-260.0,0.00023498,2]
[390963182,1760233864433,-1680.0,0.00023562,2]
[390963183,1760233864442,-505.15928884,0.00023616,2]
[390963184,1760233864451,-2000.0,0.00023616,2]
[390963185,1760233864461,-2000.0,0.00023616,2]
[390963186,1760233864471,-1242.0,0.00023631,2]
[390963187,1760233864480,-1242.0,0.00023651,2]
[390963188,1760233864489,-159.347131,0.00023675,3]
[390963189,1760233864499,-1548.21,0.0002373,2]
[390963190,1760233864508,-517.07929053,0.00023764,2]
[390963191,1760233864518,-1151.85010789,0.00023764,2]
[390963192,1760233864527,-2500.0,0.00023764,2]
[390963193,1760233864631,-2500.0,0.00023764,2]
[390963194,1760233864654,-2500.0,0.00023764,2]
[390963195,1760233864664,-176.72792493,0.00023785,5]
[390963196,1760233864673,-156.305433,0.000239,3]
[390963197,1760233864683,-159.347131,0.000239,3]
[390963198,1760233864693,-479.65040945,0.000239,2]
[390963199,1760233864703,-459.25275437,0.000239,2]
[390963200,1760233864712,-1242.0,0.00023963,2]
[390963201,1760233864721,-500.0,0.00023973,2]
[390963202,1760233864731,-500.0,0.00023973,2]
[390963203,1760233864740,-255.85980242,0.00023973,2]
[390963204,1760233864749,-257.28879411,0.00023973,2]
[390963205,1760233864758,-500.0,0.00023973,2]
[390963206,1760233864768,-500.51864581,0.00023973,2]
[390963207,1760233864779,-502.52074247,0.00023973,2]
[390963208,1760233864788,-161.56829326,0.00023973,2]
[390963209,1760233864797,-150.0,0.00023973,2]
[390963210,1760233864806,-20900.99,0.00024,2]
[390963211,1760233864816,-24999.99,0.00024,2]
[390963212,1760233864825,-24999.99,0.00024,2]
[390963213,1760233864835,-25000.0,0.00024,2]
[390963215,1760233864844,-24999.99,0.00024,2]
[390963216,1760233864853,-15256.36,0.00024,2]
[390963217,1760233864862,-1242.0,0.0002404,2]
[390963218,1760233864872,-360.0,0.00024046,2]
[390963219,1760233864881,-1297.77052356,0.00024103,2]
[390963220,1760233864892,-1242.0,0.00024122,2]
[390963221,1760233864902,-25000.0,0.0002415,2]
[390963222,1760233864912,-1009.95864256,0.00024164,2]
[390963223,1760233864921,-2500.0,0.00024164,2]
[390963224,1760233864931,-187.82826925,0.00024173,2]
[390963225,1760233864940,-500.0,0.00024261,2]
[390963226,1760233864950,-25000.0,0.000243,2]
[390963227,1760233864959,-3000.0,0.00024312,2]
[390963228,1760233864969,-3000.0,0.00024312,2]
[390963229,1760233864979,-512.99096655,0.00024312,2]
[390963230,1760233864988,-1242.0,0.00024376,2]
[390963231,1760233864998,-1242.0,0.00024415,2]
[390963232,1760233865007,-25000.0,0.0002445,2]
[390963233,1760233865017,-502.30770009,0.000245,2]
[390963234,1760233865026,-1000.0,0.00024521,2]
[390963235,1760233865036,-501.47230702,0.00024521,2]
[390963236,1760233865044,-1000.0,0.00024521,2]
[390963237,1760233865053,-300.0,0.00024521,2]
[390963238,1760233865063,-176.72792493,0.00024521,5]
[390963239,1760233865072,-500.0,0.00024547,2]
[390963240,1760233865082,-720.0,0.0002459,20]
[390963241,1760233865091,-460.0,0.00024594,2]
[390963242,1760233865101,-1806.25,0.00024643,2]
[390963243,1760233865111,-1242.0,0.0002465,2]
[390963244,1760233865124,-150.0,0.00024658,2]
[390963245,1760233865134,-1242.0,0.00024667,2]
[390963246,1760233865144,-1242.0,0.00024692,2]
[390963247,1760233865154,-3000.0,0.00024712,2]
[390963248,1760233865166,-16238.2504726,0.000248,2]
[390963249,1760233865175,-1242.0,0.00024805,2]
[390963250,1760233865184,-1242.0,0.00024814,2]
[390963251,1760233865195,-1935.44715255,0.0002486,2]
[390963252,1760233865205,-513.11886281,0.0002486,2]
[390963253,1760233865215,-1242.0,0.00024861,2]
[390963254,1760233865224,-1297.77052356,0.00024865,2]
[390963255,1760233865233,-500.0,0.00024873,2]
[390963256,1760233865244,-502.17963451,0.00024873,2]
[390963257,1760233865253,-500.0,0.00024873,2]
[390963258,1760233865263,-187.65763811,0.00024873,2]
[390963259,1760233865272,-1242.0,0.00024878,2]
[390963260,1760233865281,-439126.353103,0.000249,2]
[390963261,1760233865292,-501.66977436,0.00024906,2]
[390963262,1760233865301,-298.08050243,0.00024964,2]
[390963263,1760233865311,-1242.0,0.00024985,2]
[390963264,1760233865320,-347.15162173,0.00025,2]
[390963265,1760233865330,-967.94960107,0.00025,2]